bitfinex/quotes_SOLUSD_20250626
["timestamp","ask_amount","ask_price","bid_price","bid_amount"]
[1750906590517,5.34274054,146.27,146.23,0.02]
[1750906590722,26.0,146.28,146.23,0.02]
[1750906590723,31.0584174,146.28,146.23,0.02]
[1750906591038,12.88065634,146.26,146.23,0.02]
[1750906591542,12.88065634,146.24,146.23,0.02]
[1750906591842,12.88065634,146.25,146.23,0.02]
[1750906592633,12.88065634,146.26,146.23,0.02]
[1750906594134,0.28432314,146.28,146.23,0.02]
[1750906594328,12.88065634,146.27,146.23,0.02]
[1750906594722,41.9,146.29,146.23,0.02]
[1750906594945,12.88065634,146.26,146.23,0.02]
[1750906595136,41.9,146.29,146.23,0.02]
[1750906595336,12.88065634,146.27,146.23,0.02]
[1750906595541,12.88065634,146.28,146.23,0.02]
[1750906595738,15.9,146.29,146.26,12.88065634]
[1750906596129,15.9,146.29,146.26,19.71747446]
[1750906597138,15.9,146.29,146.23,0.02]
[1750906597139,15.9,146.29,146.25,12.88065634]
[1750906597743,15.9,146.29,146.24,6.83807439]
[1750906598079,12.88065634,146.28,146.24,6.83807439]
[1750906598252,12.88065634,146.27,146.24,6.83807439]
[1750906598455,12.88065634,146.28,146.24,6.83807439]
[1750906598757,15.9,146.29,146.26,12.88065634]
[1750906599134,12.88065634,146.28,146.24,12.88065634]
[1750906599345,12.88065634,146.28,146.23,19.73911371]
[1750906599544,15.9,146.29,146.23,19.73911371]
[1750906599545,15.9,146.29,146.25,12.88065634]
[1750906599741,15.9,146.29,146.26,12.88065634]
[1750906600148,15.9,146.29,146.26,19.71771895]
[1750906601760,15.9,146.29,146.26,6.83706261]
[1750906601947,17.94309067,146.31,146.26,6.83706261]
[1750906602252,17.94309067,146.31,146.26,19.71771895]
[1750906602457,5.06243433,146.31,146.26,19.71771895]
[1750906602766,6.67003433,146.33,146.26,6.83706261]
[1750906602955,14.48825634,146.33,146.28,12.88065634]
[1750906603159,6.67003433,146.33,146.28,12.88065634]
[1750906603344,14.48825634,146.33,146.28,12.88065634]
[1750906603665,12.88065634,146.32,146.27,12.88065634]
[1750906604046,12.88065634,146.32,146.26,6.83706261]
[1750906604248,9.17050767,146.32,146.27,16.00688288]
[1750906604464,9.17050767,146.32,146.27,6.83637521]
[1750906604767,6.67003433,146.33,146.29,9.17050767]
[1750906604768,5.06243433,146.33,146.29,9.17050767]
[1750906605078,0.04,146.35,146.32,9.17050767]
[1750906605366,0.04,146.35,146.33,9.17050767]
[1750906605659,0.04,146.35,146.28,18.64964886]
[1750906605866,0.04,146.35,146.32,9.17050767]
[1750906607260,0.04,146.35,146.33,9.17050767]
[1750906607461,0.04,146.35,146.29,6.83573723]
[1750906607649,0.04,146.35,146.33,9.17050767]
[1750906607850,0.04,146.35,146.32,9.17050767]
[1750906608068,0.04,146.35,146.27,9.17050767]
[1750906608069,9.17050767,146.33,146.27,9.17050767]
[1750906608255,0.04,146.35,146.23,0.02]
[1750906608256,9.17050767,146.28,146.23,0.02]
[1750906608452,9.17050767,146.25,146.23,0.02]
[1750906608643,9.17050767,146.24,146.23,0.02]
[1750906608847,9.17050767,146.26,146.23,0.02]
[1750906609064,26.0,146.28,146.23,9.19050767]
[1750906609065,9.17050767,146.28,146.23,9.19050767]
[1750906609255,9.17050767,146.28,146.24,9.17050767]
[1750906609639,5.07499638,146.31,146.24,9.17050767]
[1750906609838,9.17050767,146.3,146.25,9.17050767]
[1750906610061,5.07499638,146.31,146.28,9.17050767]
[1750906610367,15.0,146.32,146.3,12.87769284]
[1750906610861,15.0,146.32,146.26,18.64964886]
[1750906611060,15.0,146.32,146.3,12.87769284]
[1750906611243,15.0,146.32,146.31,12.87769284]
[1750906611446,0.04,146.35,146.31,12.87769284]
[1750906611642,12.91769284,146.35,146.31,12.87769284]
[1750906611885,0.04,146.35,146.34,12.87769284]
[1750906612165,0.04,146.35,146.31,18.64964886]
[1750906612471,0.04,146.35,146.34,12.87769284]
[1750906612656,0.04,146.35,146.3,42.57309383]
[1750906613165,0.04,146.35,146.34,12.87769284]
[1750906614150,12.91769284,146.35,146.3,6.83526999]
[1750906614347,0.04,146.35,146.3,19.71296283]
[1750906614647,0.04,146.35,146.33,12.87769284]
[1750906614856,0.04,146.35,146.34,12.87769284]
[1750906615250,0.04,146.35,146.31,18.64964886]
[1750906615458,0.04,146.35,146.34,12.87769284]
[1750906615867,0.04,146.35,146.31,18.64964886]
[1750906616174,0.04,146.35,146.34,12.87769284]
[1750906616377,0.04,146.35,146.34,19.7110945]
[1750906617463,0.04,146.35,146.32,6.8343357]
[1750906617664,0.04,146.35,146.34,12.87769284]
[1750906617869,0.04,146.35,146.33,12.87769284]
[1750906618055,5.11643842,146.41,146.34,37.5578417]
[1750906618254,0.04,146.41,146.4,12.87769284]
[1750906618567,12.91769284,146.41,146.35,12.87769284]
[1750906618879,12.87769284,146.4,146.35,12.87769284]
[1750906619078,12.87769284,146.38,146.31,18.64964886]
[1750906619377,0.04,146.41,146.3,6.2462]
[1750906619378,12.87769284,146.36,146.32,6.8343357]
[1750906619953,1.5216,146.39,146.32,6.8343357]
[1750906620149,12.87769284,146.35,146.31,6.83470844]
[1750906620353,12.87769284,146.33,146.3,6.83518261]
[1750906620553,5.07643842,146.36,146.3,6.83518261]
[1750906620781,17.94760921,146.38,146.33,12.87769284]
[1750906620977,12.87769284,146.38,146.33,12.87769284]
[1750906621180,12.87769284,146.37,146.33,12.87769284]
[1750906621673,12.87769284,146.37,146.33,6.83381387]
[1750906621881,6.59135907,146.39,146.27,6.8366719]
[1750906621882,12.87769284,146.35,146.27,6.8366719]
[1750906622061,12.87769284,146.31,146.27,6.8366719]
[1750906622261,26.0,146.34,146.26,6.83709879]
[1750906622586,12.87769284,146.3,146.26,6.83709879]
[1750906623075,12.87769284,146.29,146.24,19.71533127]
[1750906623380,1.5485,146.32,146.24,6.83763843]
[1750906623569,12.87769284,146.27,146.23,6.85854202]
[1750906623764,1.5485,146.32,146.26,12.87769284]
[1750906623970,12.87769284,146.33,146.29,12.87769284]
[1750906624168,12.87769284,146.33,146.24,18.64964886]
[1750906624388,12.87769284,146.34,146.24,18.64964886]
[1750906624682,12.87769284,146.31,146.26,12.87769284]
[1750906625057,12.87769284,146.32,146.27,12.87769284]
[1750906625877,12.87769284,146.32,146.28,6.83620453]
[1750906626466,0.28432314,146.34,146.27,6.83657695]
[1750906626668,12.87769284,146.28,146.23,12.89769284]
[1750906626868,12.87769284,146.28,146.23,19.73599141]
[1750906627077,12.87769284,146.28,146.23,6.85829857]
[1750906627271,12.87769284,146.27,146.23,0.02]
[1750906627582,26.0,146.31,146.23,0.02]
[1750906627583,12.87769284,146.26,146.23,0.02]
[1750906628172,12.87769284,146.27,146.23,0.02]
[1750906628371,12.87769284,146.29,146.24,12.87769284]
[1750906628691,12.87769284,146.3,146.25,12.87769284]
[1750906628981,12.87769284,146.29,146.24,12.87769284]
[1750906629888,12.87769284,146.28,146.24,12.87769284]
[1750906630186,12.87769284,146.28,146.24,6.83799514]
[1750906630388,1.5485,146.36,146.24,23.93318113]
[1750906630594,12.87769284,146.34,146.3,12.87769284]
[1750906630767,12.87769284,146.34,146.26,6.5]
[1750906631071,12.87769284,146.33,146.29,12.87769284]
[1750906631395,0.28432314,146.35,146.29,12.87769284]
[1750906631590,12.87769284,146.34,146.29,12.87769284]
[1750906631891,12.87769284,146.34,146.3,12.87769284]
[1750906632090,1.5485,146.36,146.3,12.87769284]
[1750906632295,1.5485,146.36,146.27,23.92835167]
[1750906632296,1.5485,146.36,146.31,12.87769284]
[1750906632482,12.87769284,146.35,146.3,12.87769284]
[1750906633107,1.5485,146.36,146.3,12.87769284]
[1750906633291,26.0,146.38,146.32,12.87769284]
[1750906633606,12.87769284,146.34,146.27,6.8366719]
[1750906633778,12.87769284,146.34,146.29,12.87769284]
[1750906634177,12.87769284,146.34,146.29,19.71296626]
[1750906634378,12.87769284,146.35,146.3,12.87769284]
[1750906634573,5.35502578,146.37,146.29,6.83527342]
[1750906634779,12.87769284,146.34,146.29,19.71296626]
[1750906635281,12.87769284,146.34,146.29,6.83527342]
[1750906635683,12.87769284,146.32,146.27,12.87769284]
[1750906636275,12.87769284,146.31,146.27,19.71435733]
[1750906637086,12.87769284,146.31,146.26,19.37769284]
[1750906637404,12.87769284,146.29,146.25,6.83759656]
[1750906638481,12.87769284,146.28,146.24,6.83800795]
[1750906639099,5.0797926,146.31,146.24,6.83800795]
[1750906639308,12.87769284,146.29,146.24,19.71570079]
[1750906639521,12.87769284,146.29,146.25,12.87769284]
[1750906639806,12.87769284,146.3,146.25,12.87769284]
[1750906640396,9.17313796,146.3,146.25,9.17313796]
[1750906641113,5.0797926,146.31,146.25,9.17313796]
[1750906642115,5.0797926,146.31,146.25,16.01060215]
[1750906642413,9.17313796,146.29,146.24,6.8379984]
[1750906642613,9.17313796,146.29,146.25,9.17313796]
[1750906643408,5.0797926,146.31,146.23,6.85854202]
[1750906643409,9.17313796,146.3,146.23,6.85854202]
[1750906643593,9.17313796,146.29,146.24,9.17313796]
[1750906644117,9.17313796,146.28,146.23,16.03167998]
[1750906646018,0.28432314,146.3,146.23,16.03167998]
[1750906646184,9.17313796,146.28,146.23,16.03167998]
[1750906646388,0.28432314,146.3,146.23,6.85854202]
[1750906646585,9.17313796,146.28,146.23,6.85854202]
[1750906646807,9.17313796,146.28,146.24,9.17313796]
[1750906647191,9.17313796,146.28,146.23,6.85854202]
[1750906647510,9.17313796,146.28,146.24,9.17313796]
[1750906647813,9.17313796,146.29,146.25,9.17313796]
[1750906648000,0.28432314,146.3,146.24,6.83782798]
[1750906648001,9.4574611,146.3,146.26,9.17313796]
[1750906648210,0.28432314,146.3,146.26,9.17313796]
[1750906648404,9.4574611,146.3,146.24,6.83782798]
[1750906648600,9.17313796,146.29,146.24,6.83782798]
[1750906648800,9.4574611,146.3,146.25,9.17313796]
[1750906649000,9.4574611,146.3,146.26,9.17313796]
[1750906649517,40.25293056,146.31,146.27,9.17313796]
[1750906650016,146.5,146.32,146.28,9.17313796]
[1750906650202,155.67313796,146.32,146.28,9.17313796]
[1750906650399,146.5,146.32,146.28,9.17313796]
[1750906651125,146.5,146.32,146.24,23.93301397]
[1750906651419,9.17313796,146.33,146.28,9.17313796]
[1750906652427,14.54422734,146.34,146.29,9.17313796]
[1750906652596,14.54422734,146.34,146.3,9.17313796]
[1750906652795,14.40206577,146.34,146.3,9.17313796]
[1750906653001,9.17313796,146.32,146.28,9.17313796]
[1750906653217,9.17313796,146.33,146.28,9.17313796]
[1750906654204,9.17313796,146.33,146.28,16.00891969]
[1750906654604,5.22892781,146.34,146.29,9.17313796]
[1750906654921,14.40206577,146.34,146.3,9.17313796]
[1750906655504,14.40206577,146.34,146.29,9.17313796]
[1750906655905,9.17313796,146.33,146.29,9.17313796]
[1750906656107,9.17313796,146.33,146.28,16.00891969]
[1750906656404,9.17313796,146.33,146.27,18.64964886]
[1750906656405,9.4574611,146.32,146.26,1.5684]
[1750906656612,0.28432314,146.32,146.27,9.17313796]
[1750906656806,9.4574611,146.32,146.27,9.17313796]
[1750906657007,0.28432314,146.32,146.27,9.17313796]
[1750906657219,9.4574611,146.32,146.27,9.17313796]
[1750906657928,9.4574611,146.32,146.28,9.17313796]
[1750906658326,0.28432314,146.32,146.28,9.17313796]
[1750906658623,9.4574611,146.33,146.28,9.17313796]
[1750906658821,9.4574611,146.33,146.27,6.83658078]
[1750906658822,5.08676624,146.34,146.31,9.17313796]
[1750906659030,5.08903561,146.35,146.31,9.17313796]
[1750906659228,9.17313796,146.35,146.31,9.17313796]
[1750906660033,14.26217357,146.36,146.31,9.17313796]
[1750906660620,14.26217357,146.36,146.32,9.17313796]
[1750906660933,14.26217357,146.36,146.29,13.41323723]
[1750906661136,14.26217357,146.36,146.32,9.17313796]
[1750906661510,5.08903561,146.36,146.32,9.17313796]
[1750906661708,162.03486258,146.41,146.35,9.17313796]
[1750906661934,5.08909531,146.4,146.36,9.17313796]
[1750906662128,5.08909531,146.39,146.36,9.17313796]
[1750906662334,5.08909531,146.38,146.35,9.17313796]
[1750906662516,5.08909531,146.39,146.35,9.17313796]
[1750906662710,5.08909531,146.39,146.36,6.3219]
[1750906662914,0.04,146.41,146.38,9.17313796]
[1750906663161,0.04,146.41,146.4,9.17313796]
[1750906663819,0.04,146.41,146.37,18.64964886]
[1750906664018,0.04,146.41,146.4,9.17313796]
[1750906665417,0.04,146.41,146.4,16.00373905]
[1750906665831,0.04,146.41,146.4,6.83060109]
[1750906666239,0.04,146.41,146.4,16.00373905]
[1750906666547,0.04,146.41,146.4,9.17313796]
[1750906668364,0.04,146.41,146.4,16.00373905]
[1750906668721,0.04,146.41,146.4,9.17313796]
[1750906669040,0.04,146.41,146.35,6.83287773]
[1750906669041,9.21313796,146.41,146.35,6.83287773]
[1750906669262,26.28432314,146.4,146.32,6.4897]
[1750906669444,9.17313796,146.37,146.32,15.66283796]
[1750906669827,9.17313796,146.38,146.33,9.17313796]
[1750906670023,26.28432314,146.4,146.34,9.17313796]
[1750906670265,35.17313796,146.4,146.35,9.17313796]
[1750906670436,9.17313796,146.4,146.36,6.83246788]
[1750906670646,0.04,146.41,146.36,6.83246788]
[1750906670647,0.04,146.41,146.38,9.17313796]
[1750906671739,0.04,146.41,146.36,6.83246788]
[1750906671961,0.04,146.41,146.38,9.17313796]
[1750906672165,0.04,146.41,146.39,9.17313796]
[1750906672743,0.04,146.41,146.34,23.91636134]
[1750906673184,0.04,146.41,146.37,9.17313796]
[1750906673351,0.04,146.41,146.38,9.17313796]
[1750906674056,0.04,146.41,146.37,9.17313796]
[1750906674846,0.04,146.41,146.37,16.00491678]
[1750906675054,9.21313796,146.41,146.37,9.17313796]
[1750906675247,9.17313796,146.4,146.36,9.17313796]
[1750906675443,9.17313796,146.4,146.35,6.83293474]
[1750906675644,9.21313796,146.41,146.36,9.17313796]
[1750906676355,9.21313796,146.41,146.37,9.17313796]
[1750906677043,9.21313796,146.41,146.34,17.08295968]
[1750906677264,9.21313796,146.41,146.37,9.17313796]
[1750906677565,0.04,146.41,146.37,16.00484527]
[1750906677775,9.21313796,146.41,146.37,16.00484527]
[1750906677955,9.21313796,146.41,146.37,9.17313796]
[1750906678566,9.17313796,146.39,146.35,9.17313796]
[1750906678935,0.04,146.41,146.35,9.17313796]
[1750906679153,9.17313796,146.39,146.34,9.17313796]
[1750906679556,0.32432314,146.41,146.34,16.00629181]
[1750906679760,0.04,146.41,146.36,9.17313796]
[1750906679968,9.21313796,146.41,146.36,9.17313796]
[1750906680677,0.04,146.41,146.36,9.17313796]
[1750906680852,0.04,146.41,146.37,9.17313796]
[1750906681050,0.04,146.41,146.38,9.17313796]
[1750906681767,0.04,146.41,146.4,9.17313796]
[1750906682967,0.04,146.41,146.38,6.83117165]
[1750906683170,0.04,146.41,146.4,9.17313796]
[1750906683354,0.04,146.41,146.38,42.56001912]
[1750906683773,0.04,146.41,146.4,9.17313796]
[1750906684855,0.04,146.41,146.38,42.56001912]
[1750906684856,0.04,146.41,146.38,6.83153436]
[1750906685061,0.04,146.41,146.38,16.00467232]
[1750906685289,0.04,146.41,146.39,9.17313796]
[1750906685585,0.04,146.41,146.37,6.83200109]
[1750906685882,0.04,146.41,146.39,9.17313796]
[1750906686253,0.04,146.41,146.4,9.17313796]
[1750906686682,0.04,146.41,146.37,23.91200382]
[1750906686887,9.21313796,146.41,146.35,6.83293474]
[1750906687053,9.17313796,146.39,146.35,6.83293474]
[1750906687482,0.04,146.41,146.36,9.17313796]
[1750906687693,9.21313796,146.41,146.36,16.00514841]
[1750906687864,0.04,146.41,146.38,9.17313796]
[1750906688218,0.04,146.41,146.36,23.91318016]
[1750906688475,0.04,146.41,146.39,9.17313796]
[1750906689086,0.04,146.41,146.36,23.91318016]
[1750906689087,0.04,146.41,146.38,9.17313796]
[1750906689447,0.04,146.41,146.36,23.91318016]
[1750906689651,0.04,146.41,146.38,16.00429268]
[1750906689880,0.04,146.41,146.38,6.83115472]
[1750906690068,0.04,146.41,146.38,16.00429268]
[1750906690268,0.04,146.41,146.39,9.17313796]
[1750906691555,0.04,146.41,146.4,9.17313796]
[1750906691791,0.04,146.41,146.4,16.00373905]
[1750906693268,0.04,146.41,146.37,56.03284896]
[1750906693269,0.04,146.41,146.38,6.83153436]
[1750906693471,0.04,146.41,146.38,16.00467232]
[1750906693669,0.04,146.41,146.4,6.83060109]
[1750906694593,0.04,146.41,146.39,16.00414281]
[1750906694987,0.04,146.41,146.4,9.17313796]
[1750906695390,0.04,146.41,146.39,16.00414281]
[1750906696972,0.04,146.41,146.4,9.17313796]
[1750906697693,0.04,146.41,146.39,16.00414281]
[1750906697888,0.04,146.41,146.38,16.00454682]
[1750906698197,0.04,146.41,146.38,9.17313796]
[1750906698698,9.17313796,146.4,146.35,9.17313796]
[1750906698874,9.17313796,146.39,146.35,6.83293474]
[1750906699073,1.6147,146.4,146.33,6.83386865]
[1750906699274,9.17313796,146.38,146.33,16.00700661]
[1750906699573,14.24303642,146.39,146.34,9.17313796]
[1750906699888,14.24303642,146.39,146.34,16.0062448]
[1750906700292,9.17313796,146.39,146.35,9.17313796]
[1750906700793,14.24303642,146.39,146.35,9.17313796]
[1750906701201,9.17313796,146.39,146.35,9.17313796]
[1750906701499,14.24303642,146.39,146.35,9.17313796]
[1750906701679,9.17313796,146.38,146.34,6.83310684]
[1750906701999,1.6147,146.4,146.3,16.02831305]
[1750906702000,9.17313796,146.35,146.3,16.02831305]
[1750906702180,9.17313796,146.34,146.3,0.02]
[1750906702494,9.17313796,146.33,146.3,0.02]
[1750906702683,9.17313796,146.31,146.3,0.02]
[1750906704096,14.26601775,146.32,146.3,0.02]
[1750906704692,9.17313796,146.31,146.3,0.02]
[1750906705801,9.4574611,146.31,146.3,0.02]
[1750906709204,47.3851437,146.31,146.3,0.02]
[1750906710304,40.55034089,146.31,146.3,0.02]
[1750906710726,35.4574611,146.31,146.3,0.02]
[1750906711814,0.28432314,146.31,146.3,0.02]
[1750906711990,9.17313796,146.32,146.3,0.02]
[1750906712304,35.4574611,146.31,146.3,0.02]
[1750906713506,26.28432314,146.31,146.3,0.02]
[1750906713708,35.4574611,146.31,146.3,0.02]
[1750906714517,35.4574611,146.31,146.23,0.02]
[1750906714518,26.0,146.24,146.23,0.02]
[1750906714705,26.0,146.24,146.22,0.02]
[1750906714706,26.28432314,146.23,146.22,0.02]
[1750906714903,35.4574611,146.23,146.22,0.02]
[1750906715105,0.28432314,146.25,146.22,0.02]
[1750906715322,9.17313796,146.24,146.22,0.02]
[1750906715502,9.17313796,146.23,146.22,0.02]
[1750906715811,9.4574611,146.23,146.22,0.02]
[1750906716010,0.28432314,146.23,146.22,0.02]
[1750906716603,9.17313796,146.24,146.22,0.02]
[1750906717007,0.28432314,146.25,146.22,0.02]
[1750906717318,10.74193796,146.26,146.22,0.02]
[1750906718515,10.74193796,146.26,146.22,6.85900971]
[1750906718712,9.17313796,146.25,146.22,6.85900971]
[1750906719927,9.17313796,146.25,146.22,0.02]
[1750906720520,9.4574611,146.23,146.22,0.02]
[1750906721025,35.4574611,146.23,146.22,0.02]
[1750906724097,6.5288,146.3,146.22,0.02]
[1750906724293,9.17313796,146.25,146.22,0.02]
[1750906724715,26.0,146.27,146.22,9.19313796]
[1750906724914,9.17313796,146.27,146.23,9.17313796]
[1750906725120,9.17313796,146.27,146.22,9.19313796]
[1750906725121,0.28432314,146.26,146.22,9.19313796]
[1750906725418,9.17313796,146.27,146.22,9.19313796]
[1750906725620,26.0,146.29,146.23,9.17313796]
[1750906725951,1.5881,146.31,146.28,9.17313796]
[1750906726230,26.0,146.32,146.29,9.17313796]
[1750906726402,0.28432314,146.31,146.28,9.17313796]
[1750906726904,0.28432314,146.31,146.27,6.83638784]
[1750906727106,13.1299,146.35,146.28,9.17313796]
[1750906727408,0.28432314,146.33,146.29,9.17313796]
[1750906727606,22.30303796,146.35,146.31,9.17313796]
[1750906727810,48.30303796,146.35,146.31,9.17313796]
[1750906728118,0.28432314,146.34,146.31,9.17313796]
[1750906729028,9.17313796,146.36,146.31,9.17313796]
[1750906729029,9.17313796,146.38,146.33,9.17313796]
[1750906729234,26.28432314,146.37,146.33,9.17313796]
[1750906729408,35.17313796,146.37,146.33,9.17313796]
[1750906729730,26.0,146.37,146.31,6.83476608]
[1750906730031,35.17313796,146.37,146.32,9.17313796]
[1750906730529,0.28432314,146.36,146.33,9.17313796]
[1750906732624,0.28432314,146.37,146.33,9.17313796]
[1750906733214,9.17313796,146.36,146.3,6.83526999]
[1750906733416,9.4574611,146.35,146.31,9.17313796]
[1750906733605,0.28432314,146.35,146.32,9.17313796]
[1750906733922,0.28432314,146.35,146.33,9.17313796]
[1750906734129,0.28432314,146.35,146.32,9.17313796]
[1750906734907,0.28432314,146.32,146.27,6.1797]
[1750906735109,0.28432314,146.32,146.27,13.01627651]
[1750906735320,0.28432314,146.32,146.27,15.35283796]
[1750906735516,9.4574611,146.32,146.27,15.35283796]
[1750906736333,9.17313796,146.31,146.26,16.01017437]
[1750906736724,0.28432314,146.32,146.25,16.01057435]
[1750906736725,9.17313796,146.3,146.25,16.01057435]
[1750906737032,0.28432314,146.32,146.25,16.01057435]
[1750906737337,9.17313796,146.29,146.24,16.01111032]
[1750906737833,9.4574611,146.3,146.25,9.17313796]
[1750906738242,0.28432314,146.3,146.24,16.01111032]
[1750906738413,9.17313796,146.29,146.24,16.01111032]
[1750906738613,9.4574611,146.3,146.25,9.17313796]
[1750906738815,9.17313796,146.29,146.25,9.17313796]
[1750906739019,9.17313796,146.29,146.24,16.01111032]
[1750906740222,9.17313796,146.29,146.24,6.83797236]
[1750906740427,9.17313796,146.28,146.24,16.01111032]
[1750906740632,9.17313796,146.27,146.23,6.83842809]
[1750906740832,9.17313796,146.25,146.22,0.02]
[1750906741136,9.17313796,146.24,146.22,0.02]
[1750906741524,0.28432314,146.27,146.22,0.02]
[1750906741723,9.17313796,146.25,146.22,0.02]
[1750906742735,9.17313796,146.24,146.22,0.02]
[1750906743839,9.17313796,146.25,146.22,0.02]
[1750906744643,9.4574611,146.24,146.22,0.02]
[1750906745424,0.28432314,146.24,146.22,0.02]
[1750906745821,5.05456594,146.27,146.23,9.17313796]
[1750906746132,9.17313796,146.29,146.24,9.17313796]
[1750906746315,14.25328289,146.29,146.24,16.01090559]
[1750906746622,9.17313796,146.29,146.24,16.01090559]
[1750906746810,0.28432314,146.28,146.24,16.01090559]
[1750906747008,9.17313796,146.29,146.24,16.01090559]
[1750906747211,0.28432314,146.28,146.24,6.83776763]
[1750906747434,14.53760603,146.28,146.23,16.01161343]
[1750906747738,9.4574611,146.28,146.23,16.01161343]
[1750906748126,14.53760603,146.28,146.23,16.01161343]
[1750906748320,9.4574611,146.28,146.23,16.01161343]
[1750906748523,9.4574611,146.28,146.22,6.85898871]
[1750906748737,9.17313796,146.27,146.22,16.03212667]
[1750906749036,0.28432314,146.28,146.24,9.17313796]
[1750906749219,0.28432314,146.28,146.25,9.17313796]
[1750906750828,0.28432314,146.29,146.26,9.17313796]
[1750906751035,5.36446807,146.29,146.27,9.17313796]
[1750906751243,0.28432314,146.29,146.27,9.17313796]
[1750906751429,0.28432314,146.29,146.26,9.17313796]
[1750906751617,0.28432314,146.29,146.25,9.17313796]
[1750906751822,5.36446807,146.29,146.25,9.17313796]
[1750906752050,9.17313796,146.28,146.23,6.83854202]
[1750906752231,9.4574611,146.27,146.22,6.85897389]
[1750906752437,9.4574611,146.27,146.22,16.03211185]
[1750906752844,14.53760603,146.27,146.22,9.19313796]
[1750906753149,9.4574611,146.27,146.22,9.19313796]
[1750906754747,9.4574611,146.27,146.22,0.02]
[1750906754748,9.17313796,146.24,146.22,0.02]
[1750906755246,9.17313796,146.23,146.22,0.02]
[1750906755452,9.4574611,146.23,146.22,0.02]
[1750906756254,0.28432314,146.23,146.22,0.02]
[1750906758447,0.28432314,146.25,146.22,9.19313796]
[1750906758648,0.28432314,146.25,146.23,9.17313796]
[1750906758846,26.0,146.27,146.22,0.02]
[1750906759051,146.5,146.29,146.25,9.17313796]
[1750906759763,10.76593796,146.31,146.26,9.17313796]
[1750906759967,10.76593796,146.31,146.24,6.83792753]
[1750906759968,0.28432314,146.29,146.25,9.17313796]
[1750906760138,0.28432314,146.29,146.26,9.17313796]
[1750906761134,9.17313796,146.3,146.26,9.17313796]
[1750906761329,0.28432314,146.3,146.27,9.17313796]
[1750906761668,0.28432314,146.31,146.28,9.17313796]
[1750906761831,9.17313796,146.3,146.22,6.2944]
[1750906762160,9.17313796,146.29,146.24,9.17313796]
[1750906762334,9.17313796,146.28,146.23,9.17313796]
[1750906762733,9.17313796,146.28,146.24,9.17313796]
[1750906762929,9.17313796,146.28,146.24,16.0110506]
[1750906762930,0.28432314,146.28,146.24,16.0110506]
[1750906764859,9.4574611,146.28,146.23,16.01167998]
[1750906765235,9.17313796,146.27,146.23,6.83854202]
[1750906765435,0.28432314,146.29,146.23,9.17313796]
[1750906765757,9.17313796,146.27,146.23,9.17313796]
[1750906766258,9.17313796,146.24,146.22,0.02]
[1750906766953,9.31529953,146.24,146.22,0.02]
[1750906769242,0.14216157,146.23,146.22,0.02]
[1750906769641,9.4574611,146.23,146.22,0.02]
[1750906772363,16.29600312,146.23,146.22,0.02]
[1750906772585,47.37916658,146.23,146.22,0.02]
[1750906772879,47.52132815,146.23,146.22,0.02]
[1750906773075,54.18762815,146.23,146.22,0.02]
[1750906773377,26.28432314,146.19,146.18,0.02]
[1750906773547,35.4574611,146.19,146.18,0.02]
[1750906773745,40.54062456,146.19,146.18,0.02]
[1750906773956,40.68278613,146.19,146.18,0.02]
[1750906774845,35.59962267,146.19,146.18,0.02]
[1750906775172,42.44003583,146.19,146.18,0.02]
[1750906775470,47.52319929,146.19,146.18,0.02]
[1750906775670,40.54062456,146.19,146.18,0.02]
[1750906776039,9.17313796,146.21,146.18,0.02]
[1750906776244,14.25495022,146.21,146.18,0.02]
[1750906776547,1.6527,146.23,146.18,9.19313796]
[1750906776756,0.28432314,146.22,146.18,9.19313796]
[1750906777055,9.4574611,146.22,146.18,0.02]
[1750906777243,9.17313796,146.2,146.18,0.02]
[1750906777443,9.4574611,146.21,146.18,0.02]
[1750906777671,9.17313796,146.21,146.18,0.02]
[1750906778045,14.25544486,146.22,146.18,0.02]
[1750906778246,0.28432314,146.21,146.18,0.02]
[1750906778646,0.28432314,146.21,146.18,9.19313796]
[1750906778860,0.28432314,146.23,146.19,9.17313796]
[1750906779169,5.36963158,146.23,146.19,9.17313796]
[1750906779365,14.54276954,146.23,146.18,9.19313796]
[1750906779749,0.28432314,146.21,146.18,0.02]
[1750906779951,9.17313796,146.21,146.18,0.02]
[1750906781351,9.4574611,146.19,146.18,0.02]
[1750906781557,0.28432314,146.19,146.18,0.02]
[1750906781961,9.17313796,146.21,146.18,0.02]
[1750906782170,0.28432314,146.2,146.18,0.02]